[Event "Late-Titled-Tuesday-Blitz-February-20-2024"]
[Site "Chess.com"]
[Date "2024.02.20"]
[Round "8"]
[White "Jospem"]
[Black "Mops_2004"]
[Result "1-0"]
[WhiteElo "3085"]
[BlackElo "2786"]
[TimeControl "180+1"]
[EndTime "15:28:04 PST"]
[Termination "Jospem won on time"]

1. e4 {[%clk 0:02:56.9]} 1... g6 {[%clk 0:03:00.1]} 2. d4 {[%clk 0:02:56.6]}
2... Bg7 {[%clk 0:03:00.5]} 3. c3 {[%clk 0:02:57.3]} 3... d6 {[%clk 0:03:00.3]}
4. Bd3 {[%clk 0:02:58]} 4... e5 {[%clk 0:02:59.8]} 5. Nf3 {[%clk 0:02:58.3]}
5... Nc6 {[%clk 0:02:59.7]} 6. O-O {[%clk 0:02:57.4]} 6... Nf6 {[%clk
0:02:59.2]} 7. h3 {[%clk 0:02:57.7]} 7... O-O {[%clk 0:02:59.1]} 8. Re1 {[%clk
0:02:58.4]} 8... a5 {[%clk 0:02:58.1]} 9. Be3 {[%clk 0:02:57.5]} 9... b6 {[%clk
0:02:56.7]} 10. Nbd2 {[%clk 0:02:57.5]} 10... Bb7 {[%clk 0:02:56.3]} 11. a3
{[%clk 0:02:57.4]} 11... Re8 {[%clk 0:02:45.9]} 12. d5 {[%clk 0:02:57.5]} 12...
Ne7 {[%clk 0:02:43.9]} 13. c4 {[%clk 0:02:58.1]} 13... c5 {[%clk 0:02:07.4]} 14.
b4 {[%clk 0:02:57.8]} 14... axb4 {[%clk 0:02:05.6]} 15. axb4 {[%clk 0:02:58.7]}
15... cxb4 {[%clk 0:01:57.2]} 16. Rb1 {[%clk 0:02:58.5]} 16... Nd7 {[%clk
0:01:50.9]} 17. Rxb4 {[%clk 0:02:58.9]} 17... Ba6 {[%clk 0:01:39.1]} 18. Qc2
{[%clk 0:02:42.4]} 18... Qc7 {[%clk 0:01:35.9]} 19. Reb1 {[%clk 0:02:42.6]}
19... Reb8 {[%clk 0:01:34.5]} 20. Qb2 {[%clk 0:02:26]} 20... Nc8 {[%clk
0:01:30.9]} 21. Bf1 {[%clk 0:02:15.1]} 21... Nc5 {[%clk 0:01:30.2]} 22. Qc2
{[%clk 0:02:13.2]} 22... Bb7 {[%clk 0:01:22.3]} 23. Ne1 {[%clk 0:02:13.4]} 23...
Ra3 {[%clk 0:01:19.5]} 24. Nd3 {[%clk 0:02:12.4]} 24... Rba8 {[%clk 0:00:58.1]}
25. Nxc5 {[%clk 0:02:07.5]} 25... dxc5 {[%clk 0:00:58.6]} 26. R4b3 {[%clk
0:02:07.3]} 26... Ra2 {[%clk 0:00:57.7]} 27. R3b2 {[%clk 0:02:03.6]} 27... R2a3
{[%clk 0:00:57.9]} 28. Bd3 {[%clk 0:01:59.2]} 28... R8a6 {[%clk 0:00:49.3]} 29.
Nf1 {[%clk 0:01:56.5]} 29... h5 {[%clk 0:00:45.8]} 30. Ng3 {[%clk 0:01:56.8]}
30... Kh7 {[%clk 0:00:45.7]} 31. Ne2 {[%clk 0:01:56.8]} 31... Bh6 {[%clk
0:00:44.9]} 32. Bxh6 {[%clk 0:01:55.1]} 32... Kxh6 {[%clk 0:00:45.4]} 33. Nc3
{[%clk 0:01:53]} 33... Nd6 {[%clk 0:00:41.6]} 34. Bf1 {[%clk 0:01:53.5]} 34...
Kg7 {[%clk 0:00:40.5]} 35. Nb5 {[%clk 0:01:53.4]} 35... Nxb5 {[%clk 0:00:39.7]}
36. Rxb5 {[%clk 0:01:54.3]} 36... R3a5 {[%clk 0:00:30.2]} 37. R5b3 {[%clk
0:01:49.5]} 37... Ra1 {[%clk 0:00:24.8]} 38. Rxa1 {[%clk 0:01:47]} 38... Rxa1
{[%clk 0:00:25.7]} 39. Qb2 {[%clk 0:01:47.7]} 39... Ra6 {[%clk 0:00:25.6]} 40.
f4 {[%clk 0:01:36]} 40... f6 {[%clk 0:00:25.2]} 41. fxe5 {[%clk 0:01:36.7]}
41... Qxe5 {[%clk 0:00:24.1]} 42. Rxb6 {[%clk 0:01:30.5]} 42... Rxb6 {[%clk
0:00:21.2]} 43. Qxb6 {[%clk 0:01:31.4]} 43... Qe7 {[%clk 0:00:09.3]} 44. Kh1
{[%clk 0:00:47]} 44... Kh6 {[%clk 0:00:08.7]} 45. d6 {[%clk 0:00:31.5]} 45...
Qxe4 {[%clk 0:00:06.8]} 46. d7 {[%clk 0:00:32.1]} 46... Qe1 {[%clk 0:00:01.6]}
47. Qxf6 {[%clk 0:00:31.7]} 1-0

[Event "Late-Titled-Tuesday-Blitz-February-20-2024"]
[Site "Chess.com"]
[Date "2024.02.20"]
[Round "8"]
[White "dretch"]
[Black "Nouali_Mohamed"]
[Result "1-0"]
[WhiteElo "2866"]
[BlackElo "2553"]
[TimeControl "180+1"]
[EndTime "15:28:09 PST"]
[Termination "dretch won on time"]

1. d4 {[%clk 0:03:00.9]} 1... Nf6 {[%clk 0:02:59.5]} 2. c4 {[%clk 0:03:00.2]}
2... g5 {[%clk 0:03:00]} 3. Nc3 {[%clk 0:02:54.8]} 3... h6 {[%clk 0:02:52.6]} 4.
g3 {[%clk 0:02:53.6]} 4... d6 {[%clk 0:02:51.7]} 5. Bg2 {[%clk 0:02:53.9]} 5...
Bg7 {[%clk 0:02:51.2]} 6. Nf3 {[%clk 0:02:53.2]} 6... Nc6 {[%clk 0:02:42.5]} 7.
d5 {[%clk 0:02:50.1]} 7... Na5 {[%clk 0:02:40.1]} 8. Qa4+ {[%clk 0:02:48.8]}
8... c6 {[%clk 0:02:36.3]} 9. dxc6 {[%clk 0:02:39.8]} 9... Nxc6 {[%clk
0:02:33.1]} 10. Nd4 {[%clk 0:02:38.7]} 10... Bd7 {[%clk 0:01:55.7]} 11. Nxc6
{[%clk 0:02:38.4]} 11... bxc6 {[%clk 0:01:56.6]} 12. Bxc6 {[%clk 0:02:37.6]}
12... Rc8 {[%clk 0:01:49.6]} 13. Bb5 {[%clk 0:02:19.5]} 13... O-O {[%clk
0:01:45.8]} 14. O-O {[%clk 0:02:14.8]} 14... Bh3 {[%clk 0:01:40.2]} 15. Rd1
{[%clk 0:02:13.1]} 15... Ng4 {[%clk 0:01:04.6]} 16. Qxa7 {[%clk 0:02:03.9]}
16... Ra8 {[%clk 0:00:58.9]} 17. Qb7 {[%clk 0:02:02.8]} 17... Rb8 {[%clk
0:00:54]} 18. Qf3 {[%clk 0:01:55.9]} 18... Ne5 {[%clk 0:00:42.8]} 19. Qe4 {[%clk
0:01:49.6]} 19... e6 {[%clk 0:00:40.5]} 20. Be3 {[%clk 0:01:43.6]} 20... f5
{[%clk 0:00:34.1]} 21. Qc2 {[%clk 0:01:42.5]} 21... f4 {[%clk 0:00:33.5]} 22.
Bd4 {[%clk 0:01:41.3]} 22... fxg3 {[%clk 0:00:18.9]} 23. hxg3 {[%clk 0:01:37.9]}
23... Rxb5 {[%clk 0:00:13.4]} 24. cxb5 {[%clk 0:01:28.2]} 24... Bf5 {[%clk
0:00:11.9]} 25. Qc1 {[%clk 0:01:19.3]} 25... Qa8 {[%clk 0:00:09.8]} 26. Bxe5
{[%clk 0:01:03.8]} 26... Bxe5 {[%clk 0:00:07.9]} 27. Qe3 {[%clk 0:01:03.4]}
27... Bh3 {[%clk 0:00:06.6]} 28. Qe4 {[%clk 0:01:00.6]} 28... Qa7 {[%clk
0:00:07]} 29. e3 {[%clk 0:00:40.3]} 29... Bf5 {[%clk 0:00:06.5]} 30. Qg2 {[%clk
0:00:38.7]} 30... Bg4 {[%clk 0:00:06]} 31. Rd2 {[%clk 0:00:37.3]} 31... Bf3
{[%clk 0:00:06.2]} 32. Qh3 {[%clk 0:00:37.3]} 32... Rf6 {[%clk 0:00:04.9]} 33.
a4 {[%clk 0:00:35.5]} 33... d5 {[%clk 0:00:04.5]} 34. a5 {[%clk 0:00:34.9]}
34... Kg7 {[%clk 0:00:04]} 35. a6 {[%clk 0:00:33.1]} 35... Bc7 {[%clk 0:00:03]}
36. Ne2 {[%clk 0:00:31.2]} 36... h5 {[%clk 0:00:02.7]} 37. Nd4 {[%clk
0:00:31.3]} 37... Bg4 {[%clk 0:00:03.1]} 38. Qh1 {[%clk 0:00:27.7]} 38... Bb6
{[%clk 0:00:03.5]} 39. Nc6 {[%clk 0:00:26.7]} 39... Qa8 {[%clk 0:00:03.9]} 40.
a7 {[%clk 0:00:27.2]} 40... h4 {[%clk 0:00:03.5]} 41. Ne5 {[%clk 0:00:26.5]}
41... Rh6 {[%clk 0:00:03.4]} 42. Nxg4 {[%clk 0:00:26.3]} 42... Rh8 {[%clk
0:00:01.9]} 43. Qf3 {[%clk 0:00:25.7]} 1-0

[Event "Late-Titled-Tuesday-Blitz-February-20-2024"]
[Site "Chess.com"]
[Date "2024.02.20"]
[Round "8"]
[White "MeisterJabo"]
[Black "subham777"]
[Result "1-0"]
[WhiteElo "2460"]
[BlackElo "2596"]
[TimeControl "180+1"]
[EndTime "15:28:10 PST"]
[Termination "MeisterJabo won by resignation"]

1. c4 {[%clk 0:02:58.2]} 1... e6 {[%clk 0:02:59.4]} 2. g3 {[%clk 0:02:58.2]}
2... d5 {[%clk 0:02:59.8]} 3. Nf3 {[%clk 0:02:59.1]} 3... Nf6 {[%clk 0:03:00]}
4. Bg2 {[%clk 0:02:59.7]} 4... Be7 {[%clk 0:03:00.7]} 5. O-O {[%clk 0:03:00.3]}
5... O-O {[%clk 0:03:01.4]} 6. d4 {[%clk 0:03:00.8]} 6... dxc4 {[%clk
0:03:01.1]} 7. Ne5 {[%clk 0:03:01.3]} 7... Nc6 {[%clk 0:03:01]} 8. Nxc6 {[%clk
0:03:01]} 8... bxc6 {[%clk 0:03:00.8]} 9. Na3 {[%clk 0:03:01.9]} 9... Bxa3
{[%clk 0:02:58.6]} 10. bxa3 {[%clk 0:03:02.8]} 10... Qd6 {[%clk 0:02:52.7]} 11.
Qa4 {[%clk 0:02:59]} 11... Qxd4 {[%clk 0:02:40.6]} 12. Be3 {[%clk 0:02:57]}
12... Qb2 {[%clk 0:02:36.5]} 13. Qxc6 {[%clk 0:02:49.2]} 13... Bd7 {[%clk
0:02:32.1]} 14. Qxc4 {[%clk 0:02:43.1]} 14... Rab8 {[%clk 0:02:28.3]} 15. Bxa7
{[%clk 0:02:41.8]} 15... Rbd8 {[%clk 0:02:22.3]} 16. Rab1 {[%clk 0:02:22.5]}
16... Qxa3 {[%clk 0:02:19]} 17. Bc5 {[%clk 0:02:20.4]} 17... Qa5 {[%clk
0:02:14.5]} 18. Be7 {[%clk 0:02:19.6]} 18... Rb8 {[%clk 0:02:08.7]} 19. Bxf8
{[%clk 0:02:17.6]} 19... Rxf8 {[%clk 0:02:09.2]} 20. Rfc1 {[%clk 0:02:11.6]}
20... Rc8 {[%clk 0:02:01.6]} 21. Rb7 {[%clk 0:02:08]} 21... h6 {[%clk 0:01:52]}
22. h3 {[%clk 0:01:57.5]} 22... Ne8 {[%clk 0:01:39.5]} 23. Qb3 {[%clk 0:01:23]}
23... Ba4 {[%clk 0:01:14.1]} 24. Qb4 {[%clk 0:01:18]} 24... Qg5 {[%clk
0:00:52.2]} 25. e3 {[%clk 0:01:10.3]} 25... Bd7 {[%clk 0:00:47]} 26. a4 {[%clk
0:01:06.1]} 26... Qd8 {[%clk 0:00:43.4]} 27. a5 {[%clk 0:00:30.7]} 27... Nd6
{[%clk 0:00:40.9]} 28. Rcxc7 {[%clk 0:00:21.5]} 28... Nxb7 {[%clk 0:00:14.5]}
29. Rxb7 {[%clk 0:00:22.4]} 29... Bc6 {[%clk 0:00:08.5]} 30. Bxc6 {[%clk
0:00:18.3]} 30... Rxc6 {[%clk 0:00:09.4]} 31. Rb8 {[%clk 0:00:18.9]} 31... Rc8
{[%clk 0:00:09.4]} 32. Rxc8 {[%clk 0:00:18.7]} 32... Qxc8 {[%clk 0:00:10.3]} 33.
Qb6 {[%clk 0:00:14]} 33... Qa8 {[%clk 0:00:08.1]} 34. a6 {[%clk 0:00:13.5]}
34... Qf3 {[%clk 0:00:06]} 35. Qb7 {[%clk 0:00:14.1]} 35... Qd1+ {[%clk
0:00:05.3]} 36. Kg2 {[%clk 0:00:14.5]} 36... Kh7 {[%clk 0:00:03.1]} 37. a7
{[%clk 0:00:14.2]} 37... h5 {[%clk 0:00:04]} 38. a8=Q {[%clk 0:00:13.6]} 38...
Qd6 {[%clk 0:00:04.2]} 39. Qe4+ {[%clk 0:00:14]} 39... g6 {[%clk 0:00:03.7]} 40.
Qac6 {[%clk 0:00:14.2]} 40... Qe7 {[%clk 0:00:03.7]} 41. Qf4 {[%clk 0:00:14.4]}
41... e5 {[%clk 0:00:03.3]} 42. Qff6 {[%clk 0:00:14.2]} 42... Qe8 {[%clk
0:00:03.8]} 43. Qxe8 {[%clk 0:00:12.9]} 1-0

[Event "Late-Titled-Tuesday-Blitz-February-20-2024"]
[Site "Chess.com"]
[Date "2024.02.20"]
[Round "8"]
[White "cmunda"]
[Black "Josetricks"]
[Result "0-1"]
[WhiteElo "2136"]
[BlackElo "2406"]
[TimeControl "180+1"]
[EndTime "15:28:12 PST"]
[Termination "Josetricks won on time"]

1. e4 {[%clk 0:03:00.9]} 1... g6 {[%clk 0:02:58.3]} 2. d4 {[%clk 0:03:00.8]}
2... Bg7 {[%clk 0:02:56.7]} 3. Nf3 {[%clk 0:03:00.4]} 3... c6 {[%clk 0:02:56.3]}
4. h3 {[%clk 0:02:56.1]} 4... d5 {[%clk 0:02:56.2]} 5. e5 {[%clk 0:02:55.9]}
5... f6 {[%clk 0:02:55.6]} 6. Bd3 {[%clk 0:02:53.3]} 6... Nd7 {[%clk 0:02:50.6]}
7. Qe2 {[%clk 0:02:45]} 7... fxe5 {[%clk 0:02:49.1]} 8. dxe5 {[%clk 0:02:45]}
8... e6 {[%clk 0:02:46.8]} 9. O-O {[%clk 0:02:41.8]} 9... Nh6 {[%clk 0:02:44.4]}
10. Nd4 {[%clk 0:02:10.7]} 10... Qe7 {[%clk 0:02:32.4]} 11. Bxh6 {[%clk
0:01:52.6]} 11... Bxh6 {[%clk 0:02:30.3]} 12. c4 {[%clk 0:01:43.3]} 12... O-O
{[%clk 0:02:15.5]} 13. Nc3 {[%clk 0:01:37]} 13... Bf4 {[%clk 0:02:13.1]} 14. Nf3
{[%clk 0:01:34.5]} 14... Qg7 {[%clk 0:01:53.7]} 15. Rfe1 {[%clk 0:01:33.9]}
15... a6 {[%clk 0:01:41.6]} 16. Rad1 {[%clk 0:01:30.8]} 16... Nc5 {[%clk
0:01:40.8]} 17. Bc2 {[%clk 0:01:28.7]} 17... b5 {[%clk 0:01:34.1]} 18. b4 {[%clk
0:01:22.9]} 18... Nd7 {[%clk 0:01:28.2]} 19. c5 {[%clk 0:01:23]} 19... a5 {[%clk
0:01:26.4]} 20. a3 {[%clk 0:01:22.6]} 20... Qf7 {[%clk 0:01:17.1]} 21. h4 {[%clk
0:01:13.7]} 21... axb4 {[%clk 0:01:08.7]} 22. axb4 {[%clk 0:01:13.2]} 22... Ra3
{[%clk 0:01:08.7]} 23. Rd3 {[%clk 0:00:52.7]} 23... Nxe5 {[%clk 0:01:04.6]} 24.
Nxe5 {[%clk 0:00:44.5]} 24... Bxe5 {[%clk 0:01:04.7]} 25. Qxe5 {[%clk
0:00:33.5]} 25... Qxf2+ {[%clk 0:01:03.1]} 26. Kh2 {[%clk 0:00:33.6]} 26... Qxc2
{[%clk 0:00:51.2]} 27. Ree3 {[%clk 0:00:21.1]} 27... Rf2 {[%clk 0:00:41.4]} 28.
Rg3 {[%clk 0:00:18]} 28... Ra1 {[%clk 0:00:24.4]} 29. h5 {[%clk 0:00:17.7]}
29... Rf5 {[%clk 0:00:22.5]} 30. Qc7 {[%clk 0:00:15.5]} 30... Rxh5+ {[%clk
0:00:22.4]} 31. Rh3 {[%clk 0:00:15.9]} 31... Rxh3+ {[%clk 0:00:11.6]} 32. Rxh3
{[%clk 0:00:14.9]} 32... Qf5 {[%clk 0:00:05.4]} 33. Qxc8+ {[%clk 0:00:12.4]}
33... Qf8 {[%clk 0:00:02]} 34. Qxe6+ {[%clk 0:00:11]} 34... Qf7 {[%clk
0:00:02.5]} 35. Qxc6 {[%clk 0:00:02.2]} 35... Qf4+ {[%clk 0:00:02.4]} 0-1

[Event "Late-Titled-Tuesday-Blitz-February-20-2024"]
[Site "Chess.com"]
[Date "2024.02.20"]
[Round "8"]
[White "Beca95"]
[Black "ArtemDyachuk"]
[Result "1-0"]
[WhiteElo "2900"]
[BlackElo "2666"]
[TimeControl "180+1"]
[EndTime "15:28:14 PST"]
[Termination "Beca95 won on time"]

1. e4 {[%clk 0:02:58]} 1... c5 {[%clk 0:03:00]} 2. Nc3 {[%clk 0:02:52.7]} 2...
d6 {[%clk 0:02:57.7]} 3. f4 {[%clk 0:02:50.8]} 3... g6 {[%clk 0:02:56.5]} 4. Bc4
{[%clk 0:02:49.2]} 4... Bg7 {[%clk 0:02:56.3]} 5. Nf3 {[%clk 0:02:49.2]} 5...
Nc6 {[%clk 0:02:56.8]} 6. O-O {[%clk 0:02:48.3]} 6... e6 {[%clk 0:02:55.8]} 7.
a3 {[%clk 0:02:47.7]} 7... Nge7 {[%clk 0:02:55.6]} 8. Ba2 {[%clk 0:02:45.9]}
8... O-O {[%clk 0:02:55]} 9. d3 {[%clk 0:02:46.1]} 9... a6 {[%clk 0:02:55.2]}
10. Qe1 {[%clk 0:02:45.4]} 10... b5 {[%clk 0:02:55]} 11. Ne2 {[%clk 0:02:44.8]}
11... b4 {[%clk 0:02:51.6]} 12. axb4 {[%clk 0:02:44.4]} 12... Nxb4 {[%clk
0:02:52.5]} 13. Bb1 {[%clk 0:02:44.1]} 13... a5 {[%clk 0:02:45]} 14. c3 {[%clk
0:02:44]} 14... Nbc6 {[%clk 0:02:44]} 15. Qh4 {[%clk 0:02:38.7]} 15... Ba6
{[%clk 0:02:28]} 16. Rd1 {[%clk 0:02:32.4]} 16... Bb5 {[%clk 0:02:18.6]} 17. Ba2
{[%clk 0:02:29.1]} 17... d5 {[%clk 0:01:55.5]} 18. e5 {[%clk 0:02:23.4]} 18...
Nf5 {[%clk 0:01:53.1]} 19. Qf2 {[%clk 0:02:23.4]} 19... c4 {[%clk 0:01:47.2]}
20. d4 {[%clk 0:02:22.2]} 20... a4 {[%clk 0:01:47.4]} 21. Bb1 {[%clk 0:02:18.8]}
21... Na5 {[%clk 0:01:47.1]} 22. g4 {[%clk 0:02:16.2]} 22... Ne7 {[%clk
0:01:40.2]} 23. Be3 {[%clk 0:02:13.6]} 23... Nb3 {[%clk 0:01:39.2]} 24. Ra3
{[%clk 0:02:14.2]} 24... Re8 {[%clk 0:01:37.6]} 25. Ng3 {[%clk 0:02:12.8]} 25...
Bf8 {[%clk 0:01:33.6]} 26. f5 {[%clk 0:02:13]} 26... exf5 {[%clk 0:01:32.4]} 27.
gxf5 {[%clk 0:02:13.9]} 27... Ra6 {[%clk 0:01:04]} 28. f6 {[%clk 0:02:13]} 28...
Nc6 {[%clk 0:00:56.2]} 29. Nh5 {[%clk 0:02:08.1]} 29... Qd7 {[%clk 0:00:29]} 30.
Qg2 {[%clk 0:01:52.7]} 30... Nd8 {[%clk 0:00:21.2]} 31. Ng5 {[%clk 0:01:35]}
31... Ne6 {[%clk 0:00:15.7]} 32. Nxe6 {[%clk 0:01:35]} 32... Raxe6 {[%clk
0:00:10.8]} 33. Bf5 {[%clk 0:01:01.4]} 33... Qc6 {[%clk 0:00:11.1]} 34. Bxe6
{[%clk 0:01:00.9]} 34... Qxe6 {[%clk 0:00:11.3]} 35. Rf1 {[%clk 0:00:58.9]}
35... Kh8 {[%clk 0:00:08.1]} 36. Ng7 {[%clk 0:00:58.6]} 36... Bxg7 {[%clk
0:00:08]} 37. fxg7+ {[%clk 0:00:58.9]} 37... Kg8 {[%clk 0:00:08.9]} 38. Rf6
{[%clk 0:00:51.9]} 38... Qd7 {[%clk 0:00:08.8]} 39. Qf3 {[%clk 0:00:50.9]} 39...
Re6 {[%clk 0:00:05.7]} 40. Rf4 {[%clk 0:00:35.6]} 40... Re8 {[%clk 0:00:05.1]}
41. h4 {[%clk 0:00:33.5]} 41... h5 {[%clk 0:00:04.4]} 42. Kh2 {[%clk 0:00:23.2]}
42... Re6 {[%clk 0:00:03.4]} 43. Qg3 {[%clk 0:00:20.6]} 43... Re8 {[%clk
0:00:02.9]} 44. Qg5 {[%clk 0:00:20.6]} 44... Kh7 {[%clk 0:00:01.3]} 45. Rxf7
{[%clk 0:00:19.3]} 1-0

[Event "Late-Titled-Tuesday-Blitz-February-20-2024"]
[Site "Chess.com"]
[Date "2024.02.20"]
[Round "8"]
[White "LUISMIGUELOV"]
[Black "Doublekk14"]
[Result "0-1"]
[WhiteElo "2175"]
[BlackElo "2308"]
[TimeControl "180+1"]
[EndTime "15:28:15 PST"]
[Termination "Doublekk14 won on time"]

1. e4 {[%clk 0:03:00.9]} 1... c5 {[%clk 0:02:45.7]} 2. d4 {[%clk 0:02:59.9]}
2... cxd4 {[%clk 0:02:44.3]} 3. c3 {[%clk 0:03:00.4]} 3... d3 {[%clk 0:02:41.8]}
4. Bxd3 {[%clk 0:02:59.4]} 4... Nc6 {[%clk 0:02:40.8]} 5. Nf3 {[%clk 0:02:59.6]}
5... d6 {[%clk 0:02:40.7]} 6. O-O {[%clk 0:02:59.8]} 6... Nf6 {[%clk 0:02:40.6]}
7. Nbd2 {[%clk 0:02:54.7]} 7... g6 {[%clk 0:02:39.8]} 8. Qe2 {[%clk 0:02:54.3]}
8... Bg7 {[%clk 0:02:37.3]} 9. Rd1 {[%clk 0:02:54.6]} 9... O-O {[%clk
0:02:37.4]} 10. Nc4 {[%clk 0:02:54.3]} 10... Qc7 {[%clk 0:02:36.8]} 11. Bf4
{[%clk 0:02:52.4]} 11... b5 {[%clk 0:02:34.9]} 12. Ne3 {[%clk 0:02:50.5]} 12...
a6 {[%clk 0:02:34.6]} 13. Nd5 {[%clk 0:02:49.6]} 13... Nxd5 {[%clk 0:02:33.6]}
14. exd5 {[%clk 0:02:49.6]} 14... Na5 {[%clk 0:02:29.4]} 15. Re1 {[%clk
0:02:43.1]} 15... Re8 {[%clk 0:02:24.3]} 16. Rad1 {[%clk 0:02:42.2]} 16... Bg4
{[%clk 0:02:19.9]} 17. h3 {[%clk 0:02:40.4]} 17... Bxf3 {[%clk 0:02:16.3]} 18.
Qxf3 {[%clk 0:02:40.2]} 18... Nc4 {[%clk 0:02:17.2]} 19. Re2 {[%clk 0:02:26.4]}
19... a5 {[%clk 0:01:52.7]} 20. Rde1 {[%clk 0:02:25.2]} 20... a4 {[%clk
0:01:22.5]} 21. a3 {[%clk 0:02:22]} 21... Bf6 {[%clk 0:01:03.6]} 22. Bh6 {[%clk
0:02:18.1]} 22... Ne5 {[%clk 0:01:00.7]} 23. Qe3 {[%clk 0:02:12.6]} 23... Nxd3
{[%clk 0:00:49.2]} 24. Qxd3 {[%clk 0:02:10.9]} 24... Qc4 {[%clk 0:00:49.5]} 25.
Qf3 {[%clk 0:02:07.6]} 25... Be5 {[%clk 0:00:42.9]} 26. h4 {[%clk 0:01:42.8]}
26... Rac8 {[%clk 0:00:41.3]} 27. h5 {[%clk 0:01:41.8]} 27... Qh4 {[%clk
0:00:35.3]} 28. Rxe5 {[%clk 0:00:21.8]} 28... dxe5 {[%clk 0:00:32.4]} 29. Rxe5
{[%clk 0:00:21.5]} 29... f6 {[%clk 0:00:22.7]} 30. Re6 {[%clk 0:00:16.6]} 30...
Qxh5 {[%clk 0:00:22.4]} 31. Qxh5 {[%clk 0:00:13.3]} 31... gxh5 {[%clk
0:00:18.7]} 32. d6 {[%clk 0:00:11.5]} 32... exd6 {[%clk 0:00:16.9]} 33. Rxd6
{[%clk 0:00:11.3]} 33... Kf7 {[%clk 0:00:14]} 34. Rb6 {[%clk 0:00:10]} 34... Rc5
{[%clk 0:00:13.4]} 35. Be3 {[%clk 0:00:08]} 35... Rd5 {[%clk 0:00:13.2]} 36.
Rb7+ {[%clk 0:00:07.2]} 36... Kg6 {[%clk 0:00:13.1]} 37. Bd4 {[%clk 0:00:05.1]}
37... Re6 {[%clk 0:00:12.3]} 38. Rb8 {[%clk 0:00:03.3]} 38... h4 {[%clk
0:00:11.9]} 39. Kh2 {[%clk 0:00:02.3]} 39... Kf5 {[%clk 0:00:11.7]} 40. Kh3
{[%clk 0:00:02.3]} 40... Re4 {[%clk 0:00:11.2]} 41. Rh8 {[%clk 0:00:01.3]} 41...
Rd7 {[%clk 0:00:09.9]} 0-1

[Event "Late-Titled-Tuesday-Blitz-February-20-2024"]
[Site "Chess.com"]
[Date "2024.02.20"]
[Round "8"]
[White "ajeale2"]
[Black "Jadro9"]
[Result "0-1"]
[WhiteElo "2493"]
[BlackElo "2637"]
[TimeControl "180+1"]
[EndTime "15:28:19 PST"]
[Termination "Jadro9 won on time"]

1. d4 {[%clk 0:03:00.9]} 1... d6 {[%clk 0:02:58.6]} 2. Bf4 {[%clk 0:03:00.9]}
2... Nd7 {[%clk 0:02:56.2]} 3. Nf3 {[%clk 0:03:00.4]} 3... g6 {[%clk 0:02:56.2]}
4. Nc3 {[%clk 0:03:00.7]} 4... Bg7 {[%clk 0:02:56.7]} 5. e4 {[%clk 0:03:01]}
5... e5 {[%clk 0:02:55.3]} 6. dxe5 {[%clk 0:03:01.4]} 6... dxe5 {[%clk
0:02:55.4]} 7. Bg5 {[%clk 0:03:01.9]} 7... Ngf6 {[%clk 0:02:52.5]} 8. Bc4 {[%clk
0:02:59.7]} 8... h6 {[%clk 0:02:51.3]} 9. Bh4 {[%clk 0:02:58.9]} 9... O-O {[%clk
0:02:49.8]} 10. O-O {[%clk 0:02:58]} 10... c6 {[%clk 0:02:48.4]} 11. Qd6 {[%clk
0:02:55.4]} 11... Re8 {[%clk 0:02:46.7]} 12. Rad1 {[%clk 0:02:45]} 12... Qe7
{[%clk 0:02:47]} 13. Qxe7 {[%clk 0:02:33.2]} 13... Rxe7 {[%clk 0:02:47.1]} 14.
Rd6 {[%clk 0:02:33.7]} 14... g5 {[%clk 0:02:45.4]} 15. Bg3 {[%clk 0:02:32.4]}
15... Ne8 {[%clk 0:02:40.2]} 16. Rd2 {[%clk 0:02:29]} 16... Nb6 {[%clk
0:02:40.5]} 17. Bb3 {[%clk 0:02:28.6]} 17... Bg4 {[%clk 0:02:40.4]} 18. Rfd1
{[%clk 0:02:22.8]} 18... Bf6 {[%clk 0:02:18.5]} 19. a4 {[%clk 0:02:17.2]} 19...
a5 {[%clk 0:02:17.6]} 20. Rd3 {[%clk 0:02:12.3]} 20... Nd7 {[%clk 0:02:16.4]}
21. h3 {[%clk 0:02:09.2]} 21... Bxf3 {[%clk 0:02:16.4]} 22. Rxf3 {[%clk
0:02:09.3]} 22... Nc5 {[%clk 0:02:16.4]} 23. Bc4 {[%clk 0:02:07.8]} 23... Kg7
{[%clk 0:02:16.4]} 24. b3 {[%clk 0:02:05.2]} 24... Nc7 {[%clk 0:02:16]} 25. Rd6
{[%clk 0:02:01.8]} 25... N7e6 {[%clk 0:02:16.4]} 26. Nd1 {[%clk 0:01:51.1]}
26... Nxe4 {[%clk 0:02:13.5]} 27. Rdd3 {[%clk 0:01:41.4]} 27... Nxg3 {[%clk
0:02:04.7]} 28. Rxg3 {[%clk 0:01:40.6]} 28... e4 {[%clk 0:02:04.4]} 29. Rd2
{[%clk 0:01:33.6]} 29... Be5 {[%clk 0:01:58.5]} 30. Re3 {[%clk 0:01:33.6]} 30...
f5 {[%clk 0:01:58.6]} 31. Ree2 {[%clk 0:01:33.7]} 31... Nf4 {[%clk 0:01:57.7]}
32. Re1 {[%clk 0:01:32.4]} 32... Kf6 {[%clk 0:01:46.1]} 33. g3 {[%clk 0:01:23]}
33... Ne6 {[%clk 0:01:45.7]} 34. Ne3 {[%clk 0:01:21.8]} 34... Nd4 {[%clk
0:01:44.9]} 35. Be2 {[%clk 0:01:14.7]} 35... Rd8 {[%clk 0:01:43.4]} 36. Kg2
{[%clk 0:01:10]} 36... f4 {[%clk 0:01:40.6]} 37. Ng4+ {[%clk 0:01:10.2]} 37...
Kg7 {[%clk 0:01:38.4]} 38. Bc4 {[%clk 0:01:04.5]} 38... Nf3 {[%clk 0:01:15.3]}
39. Rxd8 {[%clk 0:01:00.5]} 39... Nxe1+ {[%clk 0:01:15.6]} 40. Kf1 {[%clk
0:01:01.1]} 40... Nxc2 {[%clk 0:01:15.7]} 41. Nxe5 {[%clk 0:00:54.1]} 41... Rxe5
{[%clk 0:01:16]} 42. Rd7+ {[%clk 0:00:54.5]} 42... Kf6 {[%clk 0:01:15.1]} 43. g4
{[%clk 0:00:51.1]} 43... b5 {[%clk 0:01:11]} 44. Be2 {[%clk 0:00:40.9]} 44... f3
{[%clk 0:01:05]} 45. Bd1 {[%clk 0:00:40.8]} 45... Nb4 {[%clk 0:01:02.9]} 46.
Rd6+ {[%clk 0:00:40.3]} 46... Re6 {[%clk 0:01:00]} 47. Rd8 {[%clk 0:00:39.8]}
47... Ke5 {[%clk 0:00:55.1]} 48. Rf8 {[%clk 0:00:32.3]} 48... Rd6 {[%clk
0:00:55.1]} 49. Ke1 {[%clk 0:00:24.5]} 49... Nd3+ {[%clk 0:00:55.3]} 50. Kf1
{[%clk 0:00:22.4]} 50... Nxf2 {[%clk 0:00:55.2]} 51. Bc2 {[%clk 0:00:22.9]}
51... Nd3 {[%clk 0:00:54.8]} 52. axb5 {[%clk 0:00:22.9]} 52... cxb5 {[%clk
0:00:55]} 53. Rf5+ {[%clk 0:00:22.7]} 53... Kd4 {[%clk 0:00:55.3]} 54. Bd1
{[%clk 0:00:08.5]} 54... Ke3 {[%clk 0:00:52.7]} 55. Rxb5 {[%clk 0:00:06.8]}
55... Nf4 {[%clk 0:00:52.8]} 56. Bc2 {[%clk 0:00:05.7]} 56... Rd2 {[%clk
0:00:53.1]} 57. Rc5 {[%clk 0:00:03.8]} 57... Rf2+ {[%clk 0:00:51.8]} 58. Kg1
{[%clk 0:00:03]} 58... Ne2+ {[%clk 0:00:51.7]} 59. Kh1 {[%clk 0:00:02.5]} 59...
Ng3+ {[%clk 0:00:49.8]} 60. Kg1 {[%clk 0:00:02.8]} 60... Rf1+ {[%clk 0:00:50.4]}
61. Kh2 {[%clk 0:00:03.2]} 61... Kf2 {[%clk 0:00:51.1]} 0-1